fUSD/lending_fUSD_20250117
["ID","MTS","AMOUNT","RATE_DAILY","PERIOD"]
[349296186,1737103844904,-585.04,0.00024999,2]
[349296187,1737103844915,-511.53,0.00024999,2]
[349296188,1737103844924,-500.0,0.00024999,2]
[349296189,1737103844934,-500.0,0.00024999,2]
[349296190,1737103844944,-453.5475002,0.00024999,2]
[349296191,1737103844955,-500.0,0.00024999,2]
[349296192,1737103844965,-500.0,0.00024999,2]
[349296193,1737103844974,-474.96123096,0.00024999,2]
[349296194,1737103844983,-500.0,0.00024999,2]
[349296195,1737103844992,-500.0,0.00024999,2]
[349296196,1737103845005,-500.0,0.00024999,2]
[349296197,1737103845015,-500.0,0.00024999,2]
[349296198,1737103845024,-500.0,0.00024999,2]
[349296199,1737103845034,-500.0,0.00024999,2]
[349296200,1737103845044,-505.83655482,0.00024999,2]
[349296201,1737103845054,-500.0,0.00024999,2]
[349296202,1737103845065,-500.0,0.00024999,2]
[349296203,1737103845075,-500.0,0.00024999,2]
[349296204,1737103845085,-500.0,0.00024999,2]
[349296205,1737103845094,-500.0,0.00024999,2]
[349296206,1737103845104,-500.0,0.00024999,2]
[349296207,1737103845113,-500.990816,0.00024999,2]
[349296208,1737103845122,-500.0,0.00024999,2]
[349296209,1737103845131,-500.0,0.00024999,2]
[349296210,1737103845140,-500.0,0.00024999,2]
[349296211,1737103845150,-500.0,0.00024999,2]
[349296212,1737103845160,-500.0,0.00024999,2]
[349296213,1737103845169,-500.0,0.00024999,2]
[349296214,1737103845178,-500.0,0.00024999,2]
[349296215,1737103845187,-508.85,0.00024999,2]
[349296216,1737103845196,-500.0,0.00024999,2]
[349296217,1737103845205,-500.0,0.00024999,2]
[349296218,1737103845214,-500.51213851,0.00024999,2]
[349296219,1737103845223,-500.0,0.00024999,2]
[349296220,1737103845233,-500.0,0.00024999,2]
[349296221,1737103845242,-500.0,0.00024999,2]
[349296222,1737103845252,-500.0,0.00024999,2]
[349296223,1737103845261,-506.39140587,0.00024999,2]
[349296224,1737103845270,-500.0,0.00024999,2]
[349296225,1737103845279,-500.0,0.00024999,2]
[349296226,1737103845288,-500.0,0.00024999,2]
[349296227,1737103845297,-258.40976533,0.00025,2]
[349296228,1737103845306,-2209.50050223,0.00025,30]
[349296229,1737103845322,-10009.4112,0.00025,30]
[349296236,1737103845715,-287.74099872,0.00025,30]
[349296237,1737103845726,-14414.46454576,0.00025,30]
[349296238,1737103845737,-19600.98489429,0.00025,30]
[349296239,1737103845748,-19065.22000001,0.00025,30]
[349296240,1737103845760,-20453.01782047,0.00025,30]
[349296241,1737103845772,-373.090354,0.00025,30]
[349296242,1737103845783,-500.0,0.00025,30]
[349296243,1737103845943,-978.45407065,0.00025,30]
[349296244,1737103845955,-14968.44600225,0.00025,30]
[349296245,1737103845966,-7097.66545,0.00025,30]
[349296246,1737103845977,-20416.0,0.00025,30]
[349296247,1737103845988,-8341.28252596,0.00025,30]
[349296248,1737103845999,-1023.55,0.00025,30]
[349296249,1737103846018,-504.1488573,0.00025,30]
[349296250,1737103846029,-714.65,0.00025,30]
[349296251,1737103846103,-43355.62581624,0.00025,30]
[349296252,1737103846116,-827.06,0.00025,30]
[349296253,1737103846128,-339.71,0.00025,30]
[349296256,1737104494822,165.05,0.00010137,2]
[349296258,1737104513792,-200.0,0.00012229,2]
[349296259,1737104621812,-500.0,0.00012329,2]
[349296260,1737104621835,-179.57836952,0.00012329,2]
[349296261,1737104621856,-152.18,0.00012329,2]
[349296262,1737104621878,-168.24163048,0.00016712,2]
[349296263,1737104624568,-34.19836952,0.00016712,2]
[349296264,1737104624589,-165.05,0.00016813,2]
[349296265,1737104624610,-748.35,0.00021244,2]
[349296266,1737104624629,-52.40163048,0.00022499,2]
[349296267,1737104659396,-1000.0,0.00022386,2]
[349296268,1737104719097,-1000.0,0.00022386,2]
[349296269,1737104720207,-1000.0,0.00022386,2]
[349296270,1737104721353,-1000.0,0.00022386,2]
[349296271,1737104722250,-610.967434,0.00022386,2]
[349296272,1737104722275,-389.032566,0.00022499,2]
[349296273,1737104723791,-1000.0,0.00022499,2]
[349296274,1737104735160,-500.0,0.00022499,2]
[349296275,1737104741370,-200.0,0.00022399,2]
[349296277,1737104830135,-173.88,0.00012329,2]
[349296278,1737104830158,-300.0,0.00022498,2]
[349296279,1737104830178,-1144.20574446,0.00022499,2]
[349296280,1737104834137,-4507.59852978,0.00022499,2]
[349296281,1737104892708,11.35074869,0.0002,15]
[349296286,1737104966104,-1101.07474041,0.000219,2]
[349296287,1737104972110,-410.86126559,0.000219,2]
[349296288,1737104972131,-300.0,0.00022,3]
[349296289,1737104972152,-300.0,0.00022,4]
[349296290,1737104972173,-27.84073441,0.00022,4]
[349296309,1737105031857,-300.0,0.00020248,2]
[349296310,1737105031866,-15785.0,0.00020249,2]
[349296311,1737105031878,-250.18279318,0.00020249,2]
[349296312,1737105031890,-272.15926559,0.00022,4]
[349296313,1737105031900,-290.0,0.00022,5]
[349296314,1737105031910,-285.83,0.00022,3]
[349296315,1737105031920,-420.0,0.00022042,2]
[349296316,1737105031930,-188.87226377,0.00022566,2]
[349296317,1737105031940,-308.14,0.00022787,2]
[349296318,1737105031949,-250.0,0.00022787,2]
[349296319,1737105031960,-250.0,0.00022836,2]
[349296320,1737105031970,-250.0,0.00022852,2]
[349296321,1737105031980,-169.61,0.00022864,2]
[349296322,1737105032118,-1000.0,0.00022905,2]
[349296323,1737105032182,-674.6734729,0.00022981,2]
[349296324,1737105032193,-583.0,0.00023,2]
[349296325,1737105032203,-801.66,0.00023128,2]
[349296326,1737105032212,-295.87220466,0.000232,30]
[349296327,1737105032224,-4.12779534,0.000232,30]
[349296328,1737105032235,-1767.0,0.00023443,2]
[349296329,1737105032244,-165.05,0.0002349,2]
[349296330,1737105032254,-194.92,0.00023507,2]
[349296331,1737105032264,-748.35,0.00023507,2]
[349296332,1737105032274,-194.92,0.00023545,2]
[349296333,1737105032283,-156.16,0.00023595,2]
[349296334,1737105032292,-200.0,0.00023595,2]
[349296335,1737105032303,-505.00069,0.000236,2]
[349296336,1737105032312,-156.16,0.00023602,2]
[349296338,1737105032321,-156.16,0.00023608,2]
[349296340,1737105032330,-156.16,0.00023615,2]
[349296342,1737105032340,-245.73185777,0.00023618,2]
[349296344,1737105032349,-200.0,0.00023618,2]
[349296346,1737105032358,-1030.25965689,0.00023618,2]
[349296348,1737105032369,-1094.61143476,0.00023618,2]
[349296350,1737105032385,-2023.72416682,0.00023618,2]
[349296353,1737105032403,-1446.33781593,0.00023618,2]
[349296356,1737105032424,-4153.82927351,0.00023618,2]
[349296358,1737105032435,-2472.96,0.00023618,2]
[349296361,1737105032451,-27847.0306,0.00023618,2]
[349296363,1737105032464,-42213.67705209,0.00023618,2]
[349296365,1737105032474,-156.16,0.00023621,2]
[349296367,1737105032483,-156.16,0.00023628,2]
[349296369,1737105032493,-156.16,0.00023634,2]
[349296371,1737105032502,-156.16,0.00023641,2]
[349296373,1737105032512,-156.16,0.00023647,2]
[349296375,1737105032521,-156.16,0.00023654,2]
[349296377,1737105032530,-156.16,0.00023661,2]
[349296379,1737105032540,-156.16,0.00023667,2]
[349296380,1737105032550,-498.69062,0.00023673,2]
[349296382,1737105032559,-156.16,0.00023674,2]
[349296384,1737105032569,-156.16,0.0002368,2]
[349296386,1737105032579,-156.16,0.00023687,2]
[349296388,1737105032588,-156.16,0.00023693,2]
[349296390,1737105032597,-156.16,0.000237,2]
[349296392,1737105032606,-156.16,0.00023706,2]
[349296394,1737105032615,-156.16,0.00023713,2]
[349296396,1737105032624,-6423.6067,0.000239,2]
[349296398,1737105032634,-10427.86,0.0002391,2]
[349296400,1737105032645,-2902.5263824,0.00023912,2]
[349296402,1737105032655,-827.86,0.00023962,2]
[349296404,1737105032665,-539.17127512,0.00023973,2]
[349296405,1737105032675,-500.0,0.00023973,2]
[349296406,1737105032684,-801.66,0.00023983,2]
[349296408,1737105032694,-500.0,0.00024,7]
[349296410,1737105032703,-500.0,0.00024,7]
[349296412,1737105032712,-500.0,0.00024,7]
[349296414,1737105032722,-500.0,0.00024,7]
[349296416,1737105032732,-500.0,0.00024,7]
[349296418,1737105032741,-500.0,0.00024,7]
[349296420,1737105032751,-500.0,0.00024,7]
[349296422,1737105032760,-500.0,0.00024,7]
[349296424,1737105032769,-500.0,0.00024,7]
[349296425,1737105032778,-500.0,0.00024,7]
[349296426,1737105032787,-500.0,0.00024,7]
[349296427,1737105032797,-500.0,0.00024,7]
[349296428,1737105032807,-500.0,0.00024,7]
[349296429,1737105032816,-500.0,0.00024,7]
[349296430,1737105032826,-634.48,0.00024,7]
[349296431,1737105032836,-46511.0,0.00024,2]
[349296432,1737105032846,-223.25220864,0.00024127,2]
[349296433,1737105032856,-500.0,0.000242,8]
[349296434,1737105032866,-907.0,0.00024228,2]
[349296435,1737105032876,-3981.0,0.00024228,2]
[349296436,1737105032886,-1100.0,0.000243,8]
[349296437,1737105032898,-1700.0,0.000244,8]
[349296438,1737105032908,-537.0,0.00024437,2]
[349296439,1737105032917,-3243.0,0.000245,2]
[349296440,1737105032927,-2300.0,0.000245,8]
[349296441,1737105032937,-1000.0,0.00024521,2]
[349296442,1737105032947,-156.26040382,0.00024599,2]
[349296443,1737105032956,-169.77865788,0.00024599,2]
[349296444,1737105032966,-15495.59722038,0.000246,2]
[349296445,1737105032976,-2900.0,0.000246,8]
[349296446,1737105032986,-283.0,0.000247,2]
[349296447,1737105032996,-500.0,0.000247,9]
[349296448,1737105033005,-1690.09918,0.0002475,2]
[349296449,1737105033015,-500.0,0.000248,2]
[349296450,1737105033025,-500.0,0.000248,9]
[349296451,1737105033035,-801.66,0.00024839,2]
[349296452,1737105033045,-4982.51963228,0.0002488,2]
[349296453,1737105033054,-183.42,0.00024889,2]
[349296454,1737105033064,-5000.0,0.00024893,2]
[349296455,1737105033074,-205.82568142,0.00024897,2]
[349296456,1737105033084,-500.0,0.00024898,2]
[349296457,1737105033095,-500.0,0.00024898,2]
[349296458,1737105033106,-500.0,0.00024898,2]
[349296459,1737105033115,-500.0,0.00024898,2]
[349296460,1737105033126,-500.0,0.00024898,2]
[349296461,1737105033136,-500.0,0.00024898,2]
[349296462,1737105033148,-500.0,0.00024898,2]
[349296463,1737105033158,-507.06310627,0.00024898,2]
[349296464,1737105033169,-500.0,0.00024898,2]
[349296465,1737105033179,-500.0,0.00024898,2]
[349296466,1737105033189,-500.0,0.00024898,2]
[349296467,1737105033199,-500.0,0.00024898,2]
[349296468,1737105033208,-500.0,0.00024898,2]
[349296469,1737105033217,-500.0,0.00024898,2]
[349296470,1737105033226,-500.0,0.00024898,2]
[349296471,1737105033237,-500.0,0.00024898,2]
[349296472,1737105033247,-154.63827351,0.00024899,8]
[349296473,1737105033257,-1610.6706,0.00024899,2]
[349296474,1737105033267,-2027.571,0.00024899,8]
[349296475,1737105033277,-500.0,0.00024899,2]
[349296476,1737105033287,-500.0,0.00024899,2]
[349296477,1737105033297,-500.0,0.00024899,2]
[349296478,1737105033308,-500.0,0.00024899,2]
[349296479,1737105033318,-500.0,0.00024899,2]
[349296480,1737105033328,-500.0,0.00024899,2]
[349296481,1737105033338,-500.0,0.00024899,2]
[349296482,1737105033348,-500.0,0.00024899,2]
[349296483,1737105033359,-500.0,0.00024899,2]
[349296484,1737105033368,-500.0,0.00024899,2]
[349296485,1737105033380,-500.0,0.00024899,2]
[349296486,1737105033392,-500.0,0.00024899,2]
[349296487,1737105033402,-404.82108609,0.00024899,2]
[349296488,1737105033412,-500.0,0.00024899,2]
[349296489,1737105033422,-500.0,0.00024899,2]
[349296490,1737105033434,-500.0,0.00024899,2]
[349296491,1737105033444,-500.0,0.00024899,2]
[349296492,1737105033456,-500.0,0.00024899,2]
[349296493,1737105033466,-500.0,0.00024899,2]
[349296494,1737105033476,-500.0,0.00024899,2]
[349296495,1737105033486,-500.0,0.00024899,2]
[349296496,1737105033497,-500.0,0.00024899,2]
[349296497,1737105033507,-500.0,0.00024899,2]
[349296498,1737105033517,-500.0,0.00024899,2]
[349296499,1737105033527,-500.0,0.00024899,2]
[349296500,1737105033539,-500.0,0.00024899,2]
[349296501,1737105033550,-500.0,0.00024899,2]
[349296502,1737105033560,-500.0,0.00024899,2]
[349296503,1737105033570,-500.0,0.00024899,2]
[349296504,1737105033579,-1362.63,0.00024899,2]
[349296505,1737105033589,-500.0,0.00024899,2]
[349296506,1737105033599,-95799.2734,0.000249,2]
[349296507,1737105033608,-988.94071358,0.000249,2]
[349296508,1737105033617,-223.25220864,0.000249,2]
[349296509,1737105033626,-500.0,0.000249,9]
[349296510,1737105033635,-345.30703818,0.000249,2]
[349296511,1737105033646,-553.05915569,0.000249,2]
[349296512,1737105033655,-345.307038,0.000249,2]
[349296513,1737105033665,-345.307038,0.000249,2]
[349296514,1737105033674,-345.307038,0.000249,2]
[349296515,1737105033684,-345.307038,0.000249,2]
[349296516,1737105033694,-345.307038,0.000249,2]
[349296517,1737105033704,-345.307038,0.000249,2]
[349296518,1737105033715,-345.307038,0.000249,2]
[349296519,1737105033724,-345.307038,0.000249,2]
[349296520,1737105033734,-300.0,0.00024965,2]
[349296521,1737105033744,-500.0,0.00024973,2]
[349296522,1737105033753,-253.39719349,0.00024984,2]
[349296523,1737105033763,-183.42,0.00024987,2]
[349296524,1737105033773,-8874.9277678,0.00024993,2]
[349296525,1737105033784,-4979.3317299,0.00024993,2]
[349296526,1737105033794,-500.0,0.00024996,2]
[349296527,1737105033805,-500.0,0.00024996,2]
[349296528,1737105033815,-500.0,0.00024996,2]
[349296529,1737105033825,-500.0,0.00024996,2]
[349296530,1737105033836,-500.0,0.00024996,2]
[349296531,1737105033847,-500.0,0.00024996,2]
[349296532,1737105033857,-500.0,0.00024996,2]
[349296533,1737105033867,-153.0,0.00024996,2]
[349296534,1737105033877,-153.0,0.00024996,2]
[349296535,1737105033888,-153.0,0.00024997,2]
[349296536,1737105033898,-153.0,0.00024997,2]
[349296537,1737105033909,-500.0,0.00024997,2]
[349296538,1737105033919,-500.0,0.00024997,2]
[349296539,1737105033928,-500.0,0.00024997,2]
[349296540,1737105033937,-457.55861651,0.00024997,2]
[349296541,1737105033946,-355.73,0.00024997,2]
[349296542,1737105033955,-500.0,0.00024997,2]
[349296543,1737105033965,-500.0,0.00024997,2]
[349296544,1737105033974,-500.0,0.00024997,2]
[349296545,1737105033983,-500.0,0.00024997,2]
[349296546,1737105033994,-500.0,0.00024997,2]
[349296547,1737105034004,-500.0,0.00024997,2]
[349296548,1737105034013,-500.0,0.00024997,2]
[349296549,1737105034023,-175.23756801,0.00024997,2]
[349296550,1737105034033,-511.55568131,0.00024997,2]
[349296551,1737105034043,-500.0,0.00024997,2]
[349296552,1737105034053,-500.0,0.00024997,2]
[349296553,1737105034062,-500.0,0.00024997,2]
[349296554,1737105034071,-500.0,0.00024997,2]
[349296555,1737105034082,-500.0,0.00024997,2]
[349296556,1737105034091,-500.0,0.00024997,2]
[349296557,1737105034100,-500.0,0.00024997,2]
[349296558,1737105034110,-500.0,0.00024997,2]
[349296559,1737105034120,-500.0,0.00024997,2]
[349296560,1737105034129,-500.0,0.00024997,2]
[349296561,1737105034139,-500.0,0.00024997,2]
[349296562,1737105034149,-500.0,0.00024997,2]
[349296563,1737105034159,-500.0,0.00024997,2]
[349296564,1737105034169,-500.0,0.00024997,2]
[349296565,1737105034178,-500.0,0.00024997,2]
[349296566,1737105034188,-500.0,0.00024997,2]
[349296567,1737105034198,-500.0,0.00024997,2]
[349296568,1737105034207,-500.0,0.00024997,2]
[349296569,1737105034217,-507.78403963,0.00024997,2]
[349296570,1737105034226,-500.0,0.00024997,2]
[349296571,1737105034236,-501.07829918,0.00024997,2]
[349296572,1737105034245,-500.0,0.00024997,2]
[349296573,1737105034255,-463.95233646,0.00024997,2]
[349296574,1737105034265,-500.0,0.00024997,2]
[349296575,1737105034275,-501.26580517,0.00024997,2]
[349296576,1737105034286,-501.56215492,0.00024997,2]
[349296577,1737105034295,-500.0,0.00024997,2]
[349296578,1737105034305,-500.0,0.00024997,2]
[349296579,1737105034315,-588.87036392,0.00024997,2]
[349296580,1737105034324,-500.0,0.00024997,2]
[349296581,1737105034333,-500.0,0.00024997,2]
[349296582,1737105034343,-500.0,0.00024997,2]
[349296583,1737105034352,-500.97864446,0.00024997,2]
[349296584,1737105034362,-480.38089633,0.00024997,2]
[349296585,1737105034375,-500.0,0.00024997,2]
[349296586,1737105034385,-500.0,0.00024997,2]
[349296587,1737105034396,-500.0,0.00024997,2]
[349296588,1737105034407,-500.0,0.00024997,2]
[349296589,1737105034418,-500.0,0.00024997,2]
[349296590,1737105034429,-468.53758332,0.00024997,2]
[349296591,1737105034439,-500.0,0.00024997,2]
[349296592,1737105034451,-500.0,0.00024997,2]
[349296593,1737105034469,-500.0,0.00024997,2]
[349296594,1737105034482,-606.11371133,0.00024997,2]
[349296595,1737105034498,-500.0,0.00024997,2]
[349296596,1737105034509,-500.0,0.00024997,2]
[349296597,1737105034519,-500.0,0.00024997,2]
[349296598,1737105034530,-500.0,0.00024997,2]
[349296599,1737105034540,-500.0,0.00024997,2]
[349296600,1737105034550,-500.0,0.00024997,2]
[349296601,1737105034566,-500.0,0.00024997,2]
[349296602,1737105034575,-500.0,0.00024997,2]
[349296603,1737105034585,-500.0,0.00024997,2]
[349296604,1737105034595,-502.87476673,0.00024997,2]
[349296605,1737105034605,-500.0,0.00024997,2]
[349296606,1737105034614,-500.0,0.00024997,2]
[349296607,1737105034623,-500.0,0.00024997,2]
[349296608,1737105034632,-500.0,0.00024997,2]
[349296609,1737105034643,-500.0,0.00024997,2]
[349296610,1737105034652,-500.0,0.00024997,2]
[349296611,1737105034661,-500.0,0.00024997,2]
[349296612,1737105034670,-500.56784932,0.00024997,2]
[349296613,1737105034680,-500.0,0.00024997,2]
[349296614,1737105034690,-500.0,0.00024997,2]
[349296615,1737105034700,-502.49477127,0.00024997,2]
[349296616,1737105034710,-500.0,0.00024997,2]
[349296617,1737105034720,-502.5623431,0.00024997,2]
[349296618,1737105034730,-500.0,0.00024997,2]
[349296619,1737105034741,-500.0,0.00024997,2]
[349296620,1737105034750,-500.0,0.00024997,2]
[349296621,1737105034760,-500.0,0.00024997,2]
[349296622,1737105034769,-500.0,0.00024997,2]
[349296623,1737105034778,-500.0,0.00024997,2]
[349296624,1737105034789,-500.0,0.00024997,2]
[349296625,1737105034798,-500.0,0.00024997,2]
[349296626,1737105034808,-500.0,0.00024997,2]
[349296627,1737105034818,-500.57247062,0.00024997,2]
[349296628,1737105034827,-504.12477095,0.00024997,2]
[349296629,1737105034837,-501.10247307,0.00024997,2]
[349296630,1737105034847,-500.0,0.00024997,2]
[349296631,1737105034856,-502.0112721,0.00024997,2]
[349296632,1737105034866,-500.0,0.00024997,2]
[349296633,1737105034875,-500.0,0.00024997,2]
[349296634,1737105034886,-500.0,0.00024997,2]
[349296635,1737105034898,-500.63669696,0.00024997,2]
[349296636,1737105034907,-500.0,0.00024997,2]
[349296637,1737105034917,-500.0,0.00024997,2]
[349296638,1737105034926,-581.87275984,0.00024997,2]
[349296639,1737105034936,-500.66286608,0.00024997,2]
[349296640,1737105034946,-500.9074743,0.00024997,2]
[349296641,1737105034956,-500.0,0.00024997,2]
[349296642,1737105034965,-500.78498019,0.00024997,2]
[349296643,1737105034975,-500.0,0.00024997,2]
[349296644,1737105034985,-500.0,0.00024997,2]
[349296645,1737105034994,-500.0,0.00024997,2]
[349296646,1737105035004,-500.0,0.00024997,2]
[349296647,1737105035014,-500.93502091,0.00024997,2]
[349296648,1737105035024,-500.0,0.00024997,2]
[349296649,1737105035033,-500.0,0.00024997,2]
[349296650,1737105035043,-500.0,0.00024997,2]
[349296651,1737105035052,-500.0,0.00024997,2]
[349296652,1737105035063,-500.0,0.00024997,2]
[349296653,1737105035073,-500.0,0.00024997,2]
[349296654,1737105035082,-500.0,0.00024997,2]
[349296655,1737105035092,-500.0,0.00024997,2]
[349296656,1737105035102,-500.0,0.00024997,2]
[349296657,1737105035112,-500.0,0.00024997,2]
[349296658,1737105035121,-151.91259763,0.00024997,2]
[349296659,1737105035131,-500.0,0.00024997,2]
[349296660,1737105035141,-500.0,0.00024997,2]
[349296661,1737105035150,-500.0,0.00024997,2]
[349296662,1737105035160,-500.0,0.00024997,2]
[349296663,1737105035169,-500.0,0.00024997,2]
[349296664,1737105035179,-500.0,0.00024997,2]
[349296665,1737105035188,-500.0,0.00024997,2]
[349296666,1737105035197,-400.0,0.00024997,2]
[349296667,1737105035207,-456.7203246,0.00024997,2]
[349296668,1737105035216,-500.0,0.00024997,2]
[349296669,1737105035226,-500.0,0.00024997,2]
[349296670,1737105035235,-500.0,0.00024997,2]
[349296671,1737105035245,-500.0,0.00024997,2]
[349296672,1737105035254,-500.0,0.00024997,2]
[349296673,1737105035264,-500.0,0.00024997,2]
[349296674,1737105035274,-500.0,0.00024997,2]
[349296675,1737105035284,-500.0,0.00024997,2]
[349296676,1737105035293,-500.0,0.00024997,2]
[349296677,1737105035302,-500.0,0.00024997,2]
[349296678,1737105035313,-500.0,0.00024997,2]
[349296679,1737105035323,-500.0,0.00024997,2]
[349296680,1737105035332,-500.0,0.00024997,2]
[349296681,1737105035341,-541.07160664,0.00024997,2]
[349296682,1737105035351,-500.0,0.00024997,2]
[349296683,1737105035360,-500.0,0.00024997,2]
[349296684,1737105035370,-612.0177811,0.00024997,2]
[349296685,1737105035383,-500.0,0.00024997,2]
[349296686,1737105035394,-526.08178114,0.00024997,2]
[349296687,1737105035404,-500.0,0.00024997,2]
[349296688,1737105035414,-500.82804996,0.00024997,2]
[349296689,1737105035424,-500.0,0.00024997,2]
[349296690,1737105035434,-500.0,0.00024997,2]
[349296691,1737105035443,-500.0,0.00024997,2]
[349296692,1737105035455,-500.0,0.00024997,2]
[349296693,1737105035466,-500.0,0.00024997,2]
[349296694,1737105035475,-500.0,0.00024997,2]
[349296695,1737105035485,-500.0,0.00024997,2]
[349296696,1737105035494,-500.0,0.00024997,2]
[349296697,1737105035503,-500.0,0.00024997,2]
[349296698,1737105035513,-516.71699819,0.00024997,2]
[349296699,1737105035523,-500.0,0.00024997,2]
[349296700,1737105035532,-500.0,0.00024997,2]
[349296701,1737105035541,-500.0,0.00024997,2]
[349296702,1737105035552,-499.1770922,0.00024997,2]
[349296703,1737105035562,-500.0,0.00024997,2]
[349296704,1737105035572,-500.0,0.00024997,2]
[349296705,1737105035581,-500.0,0.00024997,2]
[349296706,1737105035591,-500.0,0.00024997,2]
[349296707,1737105035600,-500.0,0.00024997,2]
[349296708,1737105035610,-345.09011504,0.00024997,2]
[349296709,1737105035619,-500.0,0.00024997,2]
[349296710,1737105035629,-500.0,0.00024997,2]
[349296711,1737105035639,-228.30177319,0.00024997,2]
[349296712,1737105035650,-500.0,0.00024997,2]
[349296713,1737105035659,-500.0,0.00024997,2]
[349296714,1737105035669,-500.0,0.00024997,2]
[349296715,1737105035679,-500.0,0.00024997,2]
[349296716,1737105035688,-500.0,0.00024997,2]
[349296717,1737105035698,-500.0,0.00024997,2]
[349296718,1737105035708,-500.0,0.00024997,2]
[349296719,1737105035717,-500.0,0.00024997,2]
[349296720,1737105035727,-251.71509325,0.00024997,2]
[349296721,1737105035736,-500.0,0.00024997,2]
[349296722,1737105035745,-500.0,0.00024997,2]
[349296723,1737105035755,-507.08584747,0.00024997,2]
[349296724,1737105035765,-500.0,0.00024997,2]
[349296725,1737105035775,-500.0,0.00024997,2]
[349296726,1737105035785,-500.0,0.00024997,2]
[349296727,1737105035795,-500.0,0.00024997,2]
[349296728,1737105035804,-500.0,0.00024997,2]
[349296729,1737105035813,-500.0,0.00024997,2]
[349296730,1737105035823,-500.0,0.00024997,2]
[349296731,1737105035832,-500.0,0.00024997,2]
[349296732,1737105035842,-500.0,0.00024997,2]
[349296733,1737105035851,-500.0,0.00024997,2]
[349296734,1737105035861,-500.0,0.00024997,2]
[349296735,1737105035871,-500.0,0.00024997,2]
[349296736,1737105035880,-500.0,0.00024997,2]
[349296737,1737105035890,-500.0,0.00024997,2]
[349296738,1737105035901,-500.0,0.00024997,2]
[349296739,1737105035910,-500.0,0.00024997,2]
[349296740,1737105035920,-500.0,0.00024997,2]
[349296741,1737105035929,-500.0,0.00024997,2]
[349296742,1737105035939,-500.0,0.00024997,2]
[349296743,1737105035949,-500.0,0.00024997,2]
[349296744,1737105035958,-500.0,0.00024997,2]
[349296745,1737105035968,-500.0,0.00024997,2]
[349296746,1737105035978,-500.0,0.00024997,2]
[349296747,1737105035987,-500.0,0.00024997,2]
[349296748,1737105035997,-500.0,0.00024997,2]
[349296749,1737105036007,-290.28,0.00024997,2]
[349296750,1737105036017,-500.0,0.00024997,2]
[349296751,1737105036027,-500.0,0.00024997,2]
[349296752,1737105036037,-500.0,0.00024997,2]
[349296753,1737105036197,-501.81310668,0.00024997,2]
[349296754,1737105036208,-500.0,0.00024997,2]
[349296755,1737105036218,-500.0,0.00024997,2]
[349296756,1737105036228,-504.40330109,0.00024997,2]
[349296757,1737105036237,-500.0,0.00024997,2]
[349296758,1737105036247,-500.0,0.00024997,2]
[349296759,1737105036257,-500.0,0.00024997,2]
[349296760,1737105036266,-503.44714829,0.00024997,2]
[349296761,1737105036276,-500.0,0.00024997,2]